[Event "*** Titled Tuesday Blitz"]
[Site "Chess.com"]
[Date "2020.04.07"]
[Round "5"]
[White "guillembaches"]
[Black "Schachspielerr"]
[Result "0-1"]
[WhiteElo "2451"]
[BlackElo "2710"]
[TimeControl "180+1"]
[EndTime "13:57:25 PDT"]
[Termination "Schachspielerr won on time"]

1. e4 {[%clk 0:03:00.9]} 1... c5 {[%clk 0:02:59.1]} 2. Nf3 {[%clk 0:03:01]} 2...
e6 {[%clk 0:02:53.9]} 3. g3 {[%clk 0:03:00.6]} 3... a6 {[%clk 0:02:50.9]} 4. Bg2
{[%clk 0:03:00.3]} 4... Nc6 {[%clk 0:02:50.9]} 5. O-O {[%clk 0:03:00.2]} 5...
Nf6 {[%clk 0:02:50.8]} 6. Qe2 {[%clk 0:02:59.8]} 6... d5 {[%clk 0:02:50.6]} 7.
exd5 {[%clk 0:02:59.3]} 7... Nxd5 {[%clk 0:02:51.5]} 8. Nc3 {[%clk 0:02:56.2]}
8... Nxc3 {[%clk 0:02:34.4]} 9. dxc3 {[%clk 0:02:52.5]} 9... Be7 {[%clk
0:02:35.3]} 10. Rd1 {[%clk 0:02:47.8]} 10... Qb6 {[%clk 0:02:25.6]} 11. Ne5
{[%clk 0:02:37]} 11... Nxe5 {[%clk 0:02:25.5]} 12. Qxe5 {[%clk 0:02:37.9]} 12...
O-O {[%clk 0:02:25.1]} 13. a4 {[%clk 0:02:27.2]} 13... Bf6 {[%clk 0:01:55.4]}
14. Qd6 {[%clk 0:02:20.7]} 14... Qxd6 {[%clk 0:01:47.1]} 15. Rxd6 {[%clk
0:02:21.6]} 15... Be5 {[%clk 0:01:47]} 16. Rd1 {[%clk 0:02:11.7]} 16... Rb8
{[%clk 0:01:45.1]} 17. a5 {[%clk 0:02:06.5]} 17... b6 {[%clk 0:01:20.4]} 18. Be3
{[%clk 0:01:53.4]} 18... Bc7 {[%clk 0:00:45.7]} 19. axb6 {[%clk 0:01:41.3]}
19... Rxb6 {[%clk 0:00:45.7]} 20. Bxc5 {[%clk 0:01:38]} 20... Rxb2 {[%clk
0:00:45.7]} 21. Bxf8 {[%clk 0:01:34.3]} 21... Kxf8 {[%clk 0:00:46.6]} 22. Be4
{[%clk 0:01:26.6]} 22... Ke7 {[%clk 0:00:42.4]} 23. Bd3 {[%clk 0:01:19.2]} 23...
a5 {[%clk 0:00:40.7]} 24. Rdb1 {[%clk 0:01:12.8]} 24... Rxb1+ {[%clk 0:00:40.5]}
25. Rxb1 {[%clk 0:01:13.7]} 25... Kd6 {[%clk 0:00:40]} 26. Bb5 {[%clk
0:01:04.2]} 26... Kc5 {[%clk 0:00:35]} 27. Ba4 {[%clk 0:00:55]} 27... Ba6 {[%clk
0:00:34.1]} 28. Rd1 {[%clk 0:00:51]} 28... Bb5 {[%clk 0:00:29.4]} 29. Bb3 {[%clk
0:00:29]} 29... a4 {[%clk 0:00:28.6]} 30. Ba2 {[%clk 0:00:28.7]} 30... Be5
{[%clk 0:00:28.7]} 31. Rd8 {[%clk 0:00:21.1]} 31... Bxc3 {[%clk 0:00:27.3]} 32.
Rc8+ {[%clk 0:00:20.1]} 32... Kb4 {[%clk 0:00:27.4]} 33. Rc7 {[%clk 0:00:18.6]}
33... Bf6 {[%clk 0:00:09.4]} 34. Rxf7 {[%clk 0:00:15.7]} 34... Kc5 {[%clk
0:00:04.6]} 35. Bxe6 {[%clk 0:00:13.3]} 35... Kd4 {[%clk 0:00:03.4]} 36. Rb7
{[%clk 0:00:11.6]} 36... Bc6 {[%clk 0:00:03.2]} 37. Rb1 {[%clk 0:00:08.3]} 37...
Kc3 {[%clk 0:00:03.1]} 38. Bf5 {[%clk 0:00:07.9]} 38... g6 {[%clk 0:00:03.7]}
39. Bd3 {[%clk 0:00:07.6]} 39... Bd5 {[%clk 0:00:04.2]} 40. Ra1 {[%clk
0:00:07.4]} 40... Kb4 {[%clk 0:00:03.9]} 41. Rb1+ {[%clk 0:00:07.5]} 41... Kc3
{[%clk 0:00:04.1]} 42. Rb8 {[%clk 0:00:06.4]} 42... a3 {[%clk 0:00:03.9]} 43.
Rb5 {[%clk 0:00:06.5]} 43... a2 {[%clk 0:00:01.9]} 44. Ra5 {[%clk 0:00:06.7]}
44... Kd2 {[%clk 0:00:01.7]} 45. c4 {[%clk 0:00:05.3]} 45... a1=Q+ {[%clk
0:00:02.1]} 46. Rxa1 {[%clk 0:00:04.7]} 46... Bxa1 {[%clk 0:00:03]} 47. cxd5
{[%clk 0:00:04.8]} 47... Kxd3 {[%clk 0:00:03.1]} 48. Kg2 {[%clk 0:00:05.1]}
48... Ke4 {[%clk 0:00:03.4]} 49. f4 {[%clk 0:00:04.7]} 49... Kxd5 {[%clk
0:00:03.5]} 50. Kf3 {[%clk 0:00:05.2]} 50... Bf6 {[%clk 0:00:02.7]} 51. Kg4
{[%clk 0:00:05.7]} 51... Ke4 {[%clk 0:00:01.5]} 52. h4 {[%clk 0:00:06.1]} 52...
h5+ {[%clk 0:00:02.4]} 53. Kh3 {[%clk 0:00:05.6]} 53... Kf3 {[%clk 0:00:03.3]}
54. Kh2 {[%clk 0:00:03.7]} 54... Kg4 {[%clk 0:00:03.6]} 55. Kg2 {[%clk
0:00:03.7]} 55... Be7 {[%clk 0:00:03.6]} 56. Kf2 {[%clk 0:00:03.9]} 56... Bxh4
{[%clk 0:00:04]} 57. Kg2 {[%clk 0:00:04.7]} 57... Bxg3 {[%clk 0:00:03.8]} 0-1

[Event "*** Titled Tuesday Blitz"]
[Site "Chess.com"]
[Date "2020.04.07"]
[Round "5"]
[White "praveenb2002"]
[Black "kuli4ik"]
[Result "1/2-1/2"]
[WhiteElo "2615"]
[BlackElo "2779"]
[TimeControl "180+1"]
[EndTime "13:57:26 PDT"]
[Termination "Game drawn by repetition"]

1. d4 {[%clk 0:03:00.9]} 1... g6 {[%clk 0:02:53.7]} 2. c4 {[%clk 0:03:01.1]}
2... Bg7 {[%clk 0:02:53.8]} 3. Nf3 {[%clk 0:03:00.5]} 3... d6 {[%clk 0:02:53.9]}
4. g3 {[%clk 0:03:00.4]} 4... Nd7 {[%clk 0:02:54]} 5. Bg2 {[%clk 0:03:00.8]}
5... e5 {[%clk 0:02:49.1]} 6. Nc3 {[%clk 0:03:01.3]} 6... Ne7 {[%clk 0:02:42.2]}
7. O-O {[%clk 0:03:01.3]} 7... O-O {[%clk 0:02:42]} 8. e4 {[%clk 0:03:00.7]}
8... exd4 {[%clk 0:02:41.4]} 9. Nxd4 {[%clk 0:03:01.3]} 9... Nc6 {[%clk
0:02:42]} 10. Nde2 {[%clk 0:03:00]} 10... Nc5 {[%clk 0:02:28.7]} 11. Rb1 {[%clk
0:02:59.7]} 11... a5 {[%clk 0:02:28.1]} 12. Be3 {[%clk 0:02:58.4]} 12... Bg4
{[%clk 0:02:12.6]} 13. Qd2 {[%clk 0:02:48.2]} 13... Ne5 {[%clk 0:01:49.7]} 14.
b3 {[%clk 0:02:44.7]} 14... Nf3+ {[%clk 0:01:49.6]} 15. Bxf3 {[%clk 0:02:44.4]}
15... Bxf3 {[%clk 0:01:50.5]} 16. Bxc5 {[%clk 0:02:44.6]} 16... dxc5 {[%clk
0:01:49.9]} 17. Qe3 {[%clk 0:02:41.9]} 17... Bxe2 {[%clk 0:01:37.9]} 18. Nxe2
{[%clk 0:02:42.8]} 18... Qe7 {[%clk 0:01:35.8]} 19. Nf4 {[%clk 0:02:42]} 19...
c6 {[%clk 0:01:33.8]} 20. Rfd1 {[%clk 0:02:41]} 20... Rfd8 {[%clk 0:01:25]} 21.
Kg2 {[%clk 0:02:37.2]} 21... Bd4 {[%clk 0:01:17.7]} 22. Qf3 {[%clk 0:02:37.4]}
22... a4 {[%clk 0:01:17.4]} 23. Nd3 {[%clk 0:02:36.4]} 23... axb3 {[%clk
0:01:17]} 24. axb3 {[%clk 0:02:35.7]} 24... Ra2 {[%clk 0:01:17]} 25. Re1 {[%clk
0:02:30.8]} 25... Qf6 {[%clk 0:00:55.5]} 26. Re2 {[%clk 0:02:19.3]} 26... Rxe2
{[%clk 0:00:47.1]} 27. Qxe2 {[%clk 0:02:19]} 27... Ra8 {[%clk 0:00:47.4]} 28. e5
{[%clk 0:02:15]} 28... Qe6 {[%clk 0:00:43.8]} 29. Re1 {[%clk 0:02:08.1]} 29...
b5 {[%clk 0:00:30.3]} 30. Nf4 {[%clk 0:01:56.1]} 30... Qf5 {[%clk 0:00:28.9]}
31. e6 {[%clk 0:01:55.8]} 31... fxe6 {[%clk 0:00:28.8]} 32. Nxe6 {[%clk
0:01:45.3]} 32... Re8 {[%clk 0:00:25.5]} 33. Qf3 {[%clk 0:01:14.4]} 33... Qxf3+
{[%clk 0:00:20.6]} 34. Kxf3 {[%clk 0:01:15.3]} 34... h6 {[%clk 0:00:18]} 35. Re2
{[%clk 0:01:11.6]} 35... bxc4 {[%clk 0:00:17.2]} 36. Nxd4 {[%clk 0:01:10.9]}
36... Rf8+ {[%clk 0:00:17.2]} 37. Kg2 {[%clk 0:00:49.6]} 37... cxd4 {[%clk
0:00:16.7]} 38. bxc4 {[%clk 0:00:49.4]} 38... Rd8 {[%clk 0:00:15.4]} 39. Kf3
{[%clk 0:00:44.3]} 39... Kf7 {[%clk 0:00:15.8]} 40. Ra2 {[%clk 0:00:39.2]} 40...
Ke6 {[%clk 0:00:14.3]} 41. Ke4 {[%clk 0:00:39.1]} 41... c5 {[%clk 0:00:11.2]}
42. f4 {[%clk 0:00:30.8]} 42... h5 {[%clk 0:00:10.3]} 43. Kd3 {[%clk 0:00:28.5]}
43... Kf5 {[%clk 0:00:09.1]} 44. Ra5 {[%clk 0:00:24.4]} 44... Rc8 {[%clk
0:00:09.5]} 45. Ra6 {[%clk 0:00:24.4]} 45... Rb8 {[%clk 0:00:07.9]} 46. Rc6
{[%clk 0:00:20.6]} 46... Rb3+ {[%clk 0:00:07.7]} 47. Kd2 {[%clk 0:00:20.7]}
47... Rb2+ {[%clk 0:00:06.6]} 48. Kd3 {[%clk 0:00:21.3]} 48... Rb3+ {[%clk
0:00:06.7]} 49. Kd2 {[%clk 0:00:19.9]} 49... Ke4 {[%clk 0:00:07]} 50. Re6+
{[%clk 0:00:17.6]} 50... Kf3 {[%clk 0:00:05]} 51. Rxg6 {[%clk 0:00:18.2]} 51...
Rc3 {[%clk 0:00:04]} 52. f5 {[%clk 0:00:13.7]} 52... Ke4 {[%clk 0:00:03.6]} 53.
f6 {[%clk 0:00:11.1]} 53... Rf3 {[%clk 0:00:04]} 54. g4 {[%clk 0:00:08.1]} 54...
hxg4 {[%clk 0:00:03]} 55. Rxg4+ {[%clk 0:00:08.9]} 55... Ke5 {[%clk 0:00:03.9]}
56. Rg5+ {[%clk 0:00:08.9]} 56... Ke4 {[%clk 0:00:03.8]} 57. Rg4+ {[%clk
0:00:08.1]} 57... Ke5 {[%clk 0:00:03.4]} 58. Rg5+ {[%clk 0:00:08.2]} 58... Ke4
{[%clk 0:00:03.9]} 59. Rg4+ {[%clk 0:00:04.6]} 1/2-1/2

[Event "*** Titled Tuesday Blitz"]
[Site "Chess.com"]
[Date "2020.04.07"]
[Round "5"]
[White "GMNeiksans"]
[Black "JustWatch000"]
[Result "1/2-1/2"]
[WhiteElo "2831"]
[BlackElo "2593"]
[TimeControl "180+1"]
[EndTime "13:57:28 PDT"]
[Termination "Game drawn - insufficient material"]

1. e4 {[%clk 0:03:00.9]} 1... c5 {[%clk 0:02:57.9]} 2. Nf3 {[%clk 0:03:00.5]}
2... e6 {[%clk 0:02:58]} 3. g3 {[%clk 0:03:00.2]} 3... Nf6 {[%clk 0:02:57]} 4.
e5 {[%clk 0:02:57.9]} 4... Ng4 {[%clk 0:02:50.5]} 5. d4 {[%clk 0:02:52.1]} 5...
cxd4 {[%clk 0:02:49]} 6. h3 {[%clk 0:02:38.5]} 6... Nxe5 {[%clk 0:02:45.1]} 7.
Nxd4 {[%clk 0:02:24.9]} 7... Nbc6 {[%clk 0:02:43.6]} 8. Bg2 {[%clk 0:02:21.9]}
8... Nxd4 {[%clk 0:02:40.8]} 9. Qxd4 {[%clk 0:02:21.5]} 9... Nc6 {[%clk
0:02:39.5]} 10. Qd3 {[%clk 0:02:19]} 10... d5 {[%clk 0:02:37.7]} 11. O-O {[%clk
0:02:19]} 11... Be7 {[%clk 0:02:13.4]} 12. Nd2 {[%clk 0:02:16.5]} 12... O-O
{[%clk 0:02:12.9]} 13. c4 {[%clk 0:02:16.7]} 13... Bf6 {[%clk 0:02:04.5]} 14.
cxd5 {[%clk 0:02:11.9]} 14... Nb4 {[%clk 0:02:03.2]} 15. Qb3 {[%clk 0:02:12]}
15... Nxd5 {[%clk 0:02:03]} 16. Ne4 {[%clk 0:02:12.5]} 16... Be7 {[%clk
0:02:03]} 17. Rd1 {[%clk 0:02:10.2]} 17... Qb6 {[%clk 0:02:03.1]} 18. Qxb6
{[%clk 0:02:05.2]} 18... axb6 {[%clk 0:02:02.6]} 19. Nc3 {[%clk 0:02:05.1]}
19... Nxc3 {[%clk 0:01:58]} 20. bxc3 {[%clk 0:02:05]} 20... Bf6 {[%clk
0:01:58.3]} 21. Be3 {[%clk 0:01:45.8]} 21... Bxc3 {[%clk 0:01:57.1]} 22. Rac1
{[%clk 0:01:45.6]} 22... Bf6 {[%clk 0:01:56.8]} 23. Rc2 {[%clk 0:01:39.9]} 23...
e5 {[%clk 0:01:55.9]} 24. Bxb6 {[%clk 0:01:38.1]} 24... Bf5 {[%clk 0:01:54.1]}
25. Re2 {[%clk 0:01:35.7]} 25... Be6 {[%clk 0:01:50.7]} 26. Rdd2 {[%clk
0:01:32.4]} 26... Ra6 {[%clk 0:01:47.7]} 27. Bc5 {[%clk 0:01:24.2]} 27... Rb8
{[%clk 0:01:41.1]} 28. Bd6 {[%clk 0:01:20.4]} 28... Rd8 {[%clk 0:01:37.3]} 29.
Bxe5 {[%clk 0:01:17.9]} 29... Rxd2 {[%clk 0:01:26]} 30. Rxd2 {[%clk 0:01:18.2]}
30... Rxa2 {[%clk 0:01:21.2]} 31. Rxa2 {[%clk 0:01:18.2]} 31... Bxa2 {[%clk
0:01:21.3]} 32. Bxf6 {[%clk 0:01:18.7]} 32... gxf6 {[%clk 0:01:22.2]} 33. Bxb7
{[%clk 0:01:19.1]} 33... Be6 {[%clk 0:01:18.9]} 34. Kg2 {[%clk 0:01:19.1]} 34...
Kg7 {[%clk 0:01:18.7]} 35. h4 {[%clk 0:01:19.4]} 35... f5 {[%clk 0:01:16.3]} 36.
Kf3 {[%clk 0:01:19.8]} 36... h6 {[%clk 0:01:15.6]} 37. Ke3 {[%clk 0:01:10.1]}
37... Kf6 {[%clk 0:01:15.6]} 38. f3 {[%clk 0:01:07.4]} 38... Ke5 {[%clk
0:01:14.3]} 39. f4+ {[%clk 0:01:05.8]} 39... Kd6 {[%clk 0:01:10.6]} 40. Kd4
{[%clk 0:01:06]} 40... f6 {[%clk 0:01:08.1]} 41. Bf3 {[%clk 0:01:05.4]} 41...
Bd7 {[%clk 0:01:07.4]} 42. Bd5 {[%clk 0:01:04.1]} 42... Bc8 {[%clk 0:01:07.1]}
43. Bg2 {[%clk 0:01:02.6]} 43... Bd7 {[%clk 0:01:06.8]} 44. Kc4 {[%clk
0:01:02.4]} 44... Be8 {[%clk 0:01:02.9]} 45. Kb4 {[%clk 0:00:59.4]} 45... Bd7
{[%clk 0:01:01.5]} 46. Kc4 {[%clk 0:00:45.7]} 46... Be8 {[%clk 0:01:01.3]} 47.
Kd4 {[%clk 0:00:46.2]} 47... Bd7 {[%clk 0:01:00.7]} 48. Bf3 {[%clk 0:00:46.3]}
48... Bc8 {[%clk 0:01:00.2]} 49. Bd1 {[%clk 0:00:46.3]} 49... Bd7 {[%clk
0:01:00]} 50. Bc2 {[%clk 0:00:46.8]} 50... Bc8 {[%clk 0:00:59.6]} 51. Kc4 {[%clk
0:00:46.7]} 51... Bd7 {[%clk 0:00:59.4]} 52. Kb4 {[%clk 0:00:45.6]} 52... Kd5
{[%clk 0:00:58.8]} 53. Kc3 {[%clk 0:00:45.3]} 53... Kc5 {[%clk 0:00:58.2]} 54.
Kd3 {[%clk 0:00:43.9]} 54... Kd5 {[%clk 0:00:51.1]} 55. Ke3 {[%clk 0:00:43.6]}
55... Kc5 {[%clk 0:00:35.9]} 56. Bb3 {[%clk 0:00:43.3]} 56... Bc8 {[%clk
0:00:34.3]} 57. Bf7 {[%clk 0:00:43.2]} 57... Bd7 {[%clk 0:00:33.9]} 58. Bg6
{[%clk 0:00:41.6]} 58... Bc8 {[%clk 0:00:32.2]} 59. g4 {[%clk 0:00:39.9]} 59...
fxg4 {[%clk 0:00:31.9]} 60. f5 {[%clk 0:00:40.4]} 60... Bb7 {[%clk 0:00:30.7]}
61. Kf4 {[%clk 0:00:39.7]} 61... Bf3 {[%clk 0:00:30.6]} 62. Bh5 {[%clk
0:00:40.2]} 62... Kd4 {[%clk 0:00:30.1]} 63. Bxg4 {[%clk 0:00:33.8]} 63... Bxg4
{[%clk 0:00:25]} 64. Kxg4 {[%clk 0:00:34.1]} 64... Ke4 {[%clk 0:00:25.3]} 65.
Kh5 {[%clk 0:00:34.5]} 65... Kxf5 {[%clk 0:00:25.7]} 66. Kxh6 {[%clk 0:00:35]}
66... Kg4 {[%clk 0:00:26.1]} 67. h5 {[%clk 0:00:32.7]} 67... f5 {[%clk
0:00:26.4]} 68. Kg6 {[%clk 0:00:33]} 68... f4 {[%clk 0:00:27.1]} 69. h6 {[%clk
0:00:33.5]} 69... f3 {[%clk 0:00:28]} 70. h7 {[%clk 0:00:34.1]} 70... f2 {[%clk
0:00:28.6]} 71. h8=Q {[%clk 0:00:33.9]} 71... f1=Q {[%clk 0:00:29]} 72. Qh5+
{[%clk 0:00:33.2]} 72... Kg3 {[%clk 0:00:29.1]} 73. Qg5+ {[%clk 0:00:32.9]}
73... Kf2 {[%clk 0:00:29.4]} 74. Qf5+ {[%clk 0:00:33.3]} 74... Kg1 {[%clk
0:00:29.7]} 75. Qxf1+ {[%clk 0:00:34.2]} 75... Kxf1 {[%clk 0:00:29.6]} 1/2-1/2

[Event "*** Titled Tuesday Blitz"]
[Site "Chess.com"]
[Date "2020.04.07"]
[Round "5"]
[White "talman67"]
[Black "Man-Chuk"]
[Result "0-1"]
[WhiteElo "2533"]
[BlackElo "2761"]
[TimeControl "180+1"]
[EndTime "13:57:28 PDT"]
[Termination "Man-Chuk won by resignation"]

1. e4 {[%clk 0:03:00.9]} 1... c5 {[%clk 0:02:59.2]} 2. Nf3 {[%clk 0:03:00.1]}
2... d6 {[%clk 0:02:59.6]} 3. d4 {[%clk 0:02:59.8]} 3... cxd4 {[%clk 0:03:00.5]}
4. Nxd4 {[%clk 0:03:00.6]} 4... Nf6 {[%clk 0:03:01]} 5. Nc3 {[%clk 0:03:01.1]}
5... a6 {[%clk 0:03:01.5]} 6. h3 {[%clk 0:03:00.8]} 6... e5 {[%clk 0:03:00.7]}
7. Nb3 {[%clk 0:03:00.8]} 7... h5 {[%clk 0:03:00.3]} 8. Bg5 {[%clk 0:02:31.2]}
8... Be6 {[%clk 0:02:57.8]} 9. Be2 {[%clk 0:02:29.8]} 9... Nbd7 {[%clk
0:02:55.8]} 10. a4 {[%clk 0:02:18.8]} 10... Rc8 {[%clk 0:02:50.4]} 11. a5 {[%clk
0:02:17]} 11... Be7 {[%clk 0:02:50.2]} 12. O-O {[%clk 0:02:15.7]} 12... Rxc3
{[%clk 0:02:46.4]} 13. bxc3 {[%clk 0:02:15.4]} 13... Nxe4 {[%clk 0:02:46.7]} 14.
Bxe7 {[%clk 0:02:14.7]} 14... Qxe7 {[%clk 0:02:47.6]} 15. Bf3 {[%clk 0:02:14.5]}
15... Ndc5 {[%clk 0:02:25.6]} 16. Nxc5 {[%clk 0:02:04]} 16... Nxc5 {[%clk
0:02:26.5]} 17. Bxh5 {[%clk 0:01:52.8]} 17... Ne4 {[%clk 0:01:32.6]} 18. Bf3
{[%clk 0:01:36.5]} 18... Ng5 {[%clk 0:01:26.7]} 19. Bd5 {[%clk 0:01:34.5]} 19...
Nxh3+ {[%clk 0:01:22.6]} 20. gxh3 {[%clk 0:01:27.8]} 20... Bxh3 {[%clk
0:00:36.6]} 21. Qf3 {[%clk 0:01:01.2]} 21... Rh4 {[%clk 0:00:25.6]} 22. Qxf7+
{[%clk 0:00:16.4]} 22... Qxf7 {[%clk 0:00:25.8]} 23. Bxf7+ {[%clk 0:00:17.3]}
23... Kxf7 {[%clk 0:00:26.7]} 24. Rab1 {[%clk 0:00:16.9]} 24... Bxf1 {[%clk
0:00:24.7]} 25. Rxb7+ {[%clk 0:00:16.2]} 25... Ke6 {[%clk 0:00:21.5]} 26. Kxf1
{[%clk 0:00:17.1]} 26... Ra4 {[%clk 0:00:16.7]} 27. Rxg7 {[%clk 0:00:16.6]}
27... Rxa5 {[%clk 0:00:17]} 28. Ke2 {[%clk 0:00:16.8]} 28... Kd5 {[%clk
0:00:15.7]} 29. Kd3 {[%clk 0:00:15.8]} 29... Ra4 {[%clk 0:00:16.2]} 30. f3
{[%clk 0:00:14.1]} 30... Rf4 {[%clk 0:00:14.1]} 31. Ke3 {[%clk 0:00:13.4]} 31...
a5 {[%clk 0:00:14.6]} 32. Ra7 {[%clk 0:00:13]} 32... a4 {[%clk 0:00:15.1]} 33.
Ra5+ {[%clk 0:00:10.7]} 33... Kc6 {[%clk 0:00:14.8]} 34. Ra6+ {[%clk 0:00:08.1]}
34... Kc5 {[%clk 0:00:15]} 35. Ra5+ {[%clk 0:00:08.3]} 35... Kb6 {[%clk
0:00:15.2]} 36. Ra8 {[%clk 0:00:08.9]} 36... Kb5 {[%clk 0:00:12.4]} 37. Rb8+
{[%clk 0:00:07.7]} 37... Kc4 {[%clk 0:00:12]} 38. Rc8+ {[%clk 0:00:08.2]} 38...
Kd5 {[%clk 0:00:11.9]} 39. Ra8 {[%clk 0:00:07.3]} 39... Rh4 {[%clk 0:00:09.7]}
40. Kd3 {[%clk 0:00:06.7]} 40... Ke6 {[%clk 0:00:08.7]} 41. c4 {[%clk
0:00:06.5]} 41... Rf4 {[%clk 0:00:08.7]} 42. Rxa4 {[%clk 0:00:05.1]} 42... Rxf3+
{[%clk 0:00:09.1]} 43. Ke2 {[%clk 0:00:06]} 43... Rh3 {[%clk 0:00:08.2]} 44. Ra6
{[%clk 0:00:05.3]} 44... Rc3 {[%clk 0:00:07.6]} 45. Rc6 {[%clk 0:00:03.7]} 45...
Kd7 {[%clk 0:00:04.9]} 46. Ra6 {[%clk 0:00:03]} 46... Rxc4 {[%clk 0:00:04]} 47.
Kd3 {[%clk 0:00:03.1]} 47... Rd4+ {[%clk 0:00:04.2]} 48. Ke3 {[%clk 0:00:02.7]}
48... Ke6 {[%clk 0:00:04.7]} 49. c3 {[%clk 0:00:03]} 49... Rh4 {[%clk
0:00:04.9]} 50. Ra8 {[%clk 0:00:02.7]} 50... Kd5 {[%clk 0:00:05]} 51. Kd3 {[%clk
0:00:02.7]} 51... Rh3+ {[%clk 0:00:05]} 52. Kc2 {[%clk 0:00:03.3]} 52... Ke4
{[%clk 0:00:05.5]} 53. Ra6 {[%clk 0:00:02.3]} 53... d5 {[%clk 0:00:05.6]} 54.
Rd6 {[%clk 0:00:02.9]} 54... Rh2+ {[%clk 0:00:05.1]} 55. Kb3 {[%clk 0:00:02.9]}
55... Rd2 {[%clk 0:00:05.5]} 56. Re6 {[%clk 0:00:03.3]} 56... Kf5 {[%clk
0:00:05.4]} 57. Kb4 {[%clk 0:00:03.6]} 57... Kxe6 {[%clk 0:00:05.4]} 0-1

[Event "*** Titled Tuesday Blitz"]
[Site "Chess.com"]
[Date "2020.04.07"]
[Round "5"]
[White "Nancy11111"]
[Black "moro182"]
[Result "1-0"]
[WhiteElo "2394"]
[BlackElo "2678"]
[TimeControl "180+1"]
[EndTime "13:57:33 PDT"]
[Termination "Nancy11111 won by resignation"]

1. e4 {[%clk 0:03:00.9]} 1... e5 {[%clk 0:02:59.4]} 2. Nf3 {[%clk 0:02:58.7]}
2... Nc6 {[%clk 0:02:59.9]} 3. Bb5 {[%clk 0:02:59]} 3... a6 {[%clk 0:02:59.7]}
4. Ba4 {[%clk 0:02:58.8]} 4... Nge7 {[%clk 0:02:58.6]} 5. O-O {[%clk 0:02:57.7]}
5... g6 {[%clk 0:02:59]} 6. d4 {[%clk 0:02:57.3]} 6... exd4 {[%clk 0:02:59.9]}
7. Nxd4 {[%clk 0:02:57.4]} 7... Bg7 {[%clk 0:03:00.5]} 8. c3 {[%clk 0:02:56.5]}
8... O-O {[%clk 0:02:58.8]} 9. Bc2 {[%clk 0:02:55.3]} 9... d6 {[%clk 0:02:54.3]}
10. Be3 {[%clk 0:02:52.7]} 10... Ne5 {[%clk 0:02:52.7]} 11. Nd2 {[%clk
0:02:47.9]} 11... b5 {[%clk 0:02:49.3]} 12. h3 {[%clk 0:02:46.2]} 12... c5
{[%clk 0:02:46.1]} 13. Ne2 {[%clk 0:02:40.3]} 13... Bb7 {[%clk 0:02:34.7]} 14.
Kh1 {[%clk 0:02:35.1]} 14... f5 {[%clk 0:02:26.1]} 15. f4 {[%clk 0:02:33.1]}
15... Nd7 {[%clk 0:02:08.9]} 16. Ng3 {[%clk 0:02:29.7]} 16... Nf6 {[%clk
0:01:53.3]} 17. exf5 {[%clk 0:02:05.6]} 17... Qd7 {[%clk 0:01:53.3]} 18. Nf3
{[%clk 0:01:59.2]} 18... Rad8 {[%clk 0:01:39.8]} 19. fxg6 {[%clk 0:01:49.2]}
19... hxg6 {[%clk 0:01:40.7]} 20. Qd2 {[%clk 0:01:06.4]} 20... Nfd5 {[%clk
0:01:29.2]} 21. Rae1 {[%clk 0:01:03.8]} 21... Nxe3 {[%clk 0:01:27.8]} 22. Qxe3
{[%clk 0:01:04.7]} 22... Nd5 {[%clk 0:01:27.1]} 23. Qd2 {[%clk 0:00:46.5]} 23...
Nxf4 {[%clk 0:01:26.1]} 24. Be4 {[%clk 0:00:45.8]} 24... d5 {[%clk 0:01:23.7]}
25. Bc2 {[%clk 0:00:42.7]} 25... d4 {[%clk 0:01:20.5]} 26. cxd4 {[%clk
0:00:43.4]} 26... cxd4 {[%clk 0:00:50.4]} 27. Be4 {[%clk 0:00:31.1]} 27... d3
{[%clk 0:00:50]} 28. Kh2 {[%clk 0:00:23.2]} 28... Bxe4 {[%clk 0:00:37.9]} 29.
Rxe4 {[%clk 0:00:20.3]} 29... Qc7 {[%clk 0:00:38.4]} 30. Rfe1 {[%clk 0:00:16.6]}
30... Ne2 {[%clk 0:00:37.4]} 31. R1xe2 {[%clk 0:00:16.9]} 31... dxe2 {[%clk
0:00:38.3]} 32. Qxe2 {[%clk 0:00:17.8]} 32... Rf7 {[%clk 0:00:36.2]} 33. Ng5
{[%clk 0:00:16.5]} 33... Rf5 {[%clk 0:00:33.2]} 34. Ne6 {[%clk 0:00:16.1]} 34...
Qd6 {[%clk 0:00:29.4]} 35. Nxd8 {[%clk 0:00:16.2]} 35... Rg5 {[%clk 0:00:29.8]}
36. Re8+ {[%clk 0:00:15.1]} 36... Kh7 {[%clk 0:00:30.1]} 37. Qf3 {[%clk
0:00:13.6]} 37... Be5 {[%clk 0:00:30.1]} 38. Rxe5 {[%clk 0:00:13.5]} 38... Qxe5
{[%clk 0:00:26.9]} 39. Nf7 {[%clk 0:00:13.6]} 39... Qe7 {[%clk 0:00:27.5]} 40.
Nxg5+ {[%clk 0:00:13.2]} 40... Qxg5 {[%clk 0:00:28.4]} 41. Qb7+ {[%clk
0:00:13.5]} 41... Kh6 {[%clk 0:00:28.5]} 42. Qxa6 {[%clk 0:00:14.1]} 42... Qe5
{[%clk 0:00:29.1]} 43. a4 {[%clk 0:00:13]} 43... b4 {[%clk 0:00:27.7]} 44. b3
{[%clk 0:00:12.5]} 44... Qc3 {[%clk 0:00:21.2]} 45. Qe6 {[%clk 0:00:12.1]} 45...
Qc5 {[%clk 0:00:18.6]} 46. Qe4 {[%clk 0:00:06.6]} 46... Qc3 {[%clk 0:00:16.5]}
47. Qc4 {[%clk 0:00:06.3]} 47... Qe1 {[%clk 0:00:09.1]} 48. a5 {[%clk
0:00:05.7]} 48... Qe5 {[%clk 0:00:09.6]} 49. a6 {[%clk 0:00:05.5]} 49... Qa5
{[%clk 0:00:09.6]} 50. Qh4+ {[%clk 0:00:05.4]} 50... Kg7 {[%clk 0:00:09.8]} 51.
Qe7+ {[%clk 0:00:05.9]} 51... Kh6 {[%clk 0:00:10.1]} 52. a7 {[%clk 0:00:06.4]}
52... g5 {[%clk 0:00:09.5]} 53. Qb7 {[%clk 0:00:06.4]} 53... g4 {[%clk 0:00:09]}
54. a8=Q {[%clk 0:00:06.7]} 1-0